bitfinex/quotes_SOLUSD_20260217
["timestamp","ask_amount","ask_price","bid_price","bid_amount"]
[1771354432326,7.05995506,85.37,85.332,0.5]
[1771354432727,40.9984889,85.369,85.332,0.5]
[1771354432945,7.05995506,85.36,85.332,0.5]
[1771354433352,40.9984889,85.369,85.332,0.5]
[1771354433954,11.71385397,85.369,85.332,0.5]
[1771354434949,7.05995506,85.36,85.332,0.5]
[1771354435166,7.05995506,85.36,85.324,0.5]
[1771354435448,40.9984889,85.369,85.324,0.5]
[1771354435449,7.05995506,85.35,85.324,0.5]
[1771354435646,40.9984889,85.369,85.324,0.5]
[1771354435647,17.36,85.351,85.324,0.5]
[1771354435834,7.05995506,85.36,85.324,0.5]
[1771354436033,17.36,85.352,85.324,0.5]
[1771354436252,7.05995506,85.36,85.324,0.5]
[1771354436634,17.36,85.359,85.324,0.5]
[1771354438637,41.00377233,85.358,85.324,0.5]
[1771354439550,17.38,85.357,85.324,0.5]
[1771354440252,11.71489298,85.362,85.326,0.5]
[1771354440551,11.71489298,85.362,85.331,0.5]
[1771354441337,11.71489298,85.362,85.332,0.5]
[1771354441852,7.05995506,85.37,85.332,0.5]
[1771354442046,17.4,85.369,85.341,0.5]
[1771354443239,11.71296755,85.376,85.351,0.5]
[1771354444538,29.11296755,85.376,85.351,0.5]
[1771354444952,29.11296755,85.376,85.341,0.5]
[1771354445266,11.71385397,85.369,85.341,0.5]
[1771354445857,11.71385397,85.369,85.342,0.5]
[1771354447764,11.71385397,85.369,85.311,0.5]
[1771354447765,7.05995506,85.35,85.311,0.5]
[1771354448656,7.05995506,85.35,85.315,0.5]
[1771354449554,11.7165989,85.349,85.316,11.72113085]
[1771354449856,11.7165989,85.349,85.317,0.5]
[1771354450058,7.05995506,85.36,85.321,0.5]
[1771354450239,17.4,85.369,85.341,0.5]
[1771354450441,7.05995506,85.38,85.341,0.5]
[1771354450654,7.05995506,85.39,85.351,0.5]
[1771354451038,7.05995506,85.38,85.351,0.5]
[1771354451233,7.05995506,85.36,85.33,7.05995506]
[1771354451437,7.05995506,85.36,85.331,0.5]
[1771354451652,7.05995506,85.37,85.331,0.5]
[1771354451853,7.05995506,85.37,85.332,0.5]
[1771354452054,11.71357955,85.371,85.341,0.5]
[1771354454372,7.05995506,85.37,85.341,0.5]
[1771354455456,11.71385397,85.369,85.341,0.5]
[1771354455847,11.71385397,85.369,85.342,11.71755993]
[1771354456047,11.71385397,85.369,85.343,0.5]
[1771354456753,7.05995506,85.35,85.322,0.5]
[1771354456968,17.42,85.349,85.322,0.5]
[1771354457167,7.05995506,85.34,85.322,0.5]
[1771354457561,7.05995506,85.34,85.307,0.5]
[1771354458360,17.44,85.339,85.307,0.5]
[1771354458576,41.01338207,85.338,85.307,0.5]
[1771354458951,11.71810916,85.338,85.308,0.5]
[1771354459168,11.71680981,85.348,85.311,0.5]
[1771354459369,29.15680981,85.348,85.311,0.5]
[1771354460374,7.05995506,85.34,85.304,0.5]
[1771354463064,7.05995506,85.34,85.306,0.5]
[1771354463264,0.50193545,85.336,85.248,12.58418516]
[1771354463569,0.50193545,85.336,85.24,0.2]
[1771354463570,7.56189051,85.32,85.28,7.05995506]
[1771354464391,0.50193545,85.319,85.28,7.05995506]
[1771354465172,41.02299631,85.318,85.28,7.05995506]
[1771354465354,17.44,85.317,85.281,0.48201872]
[1771354466752,41.02299631,85.318,85.281,0.48201872]
[1771354466753,41.02299631,85.318,85.29,7.08159545]
[1771354466967,11.72085609,85.318,85.301,0.48201872]
[1771354467172,16.9779976,85.324,85.311,0.48201872]
[1771354467376,41.0143433,85.336,85.311,0.48201872]
[1771354467575,17.48,85.333,85.311,0.48201872]
[1771354468258,41.0143433,85.336,85.311,0.48201872]
[1771354468556,11.71865844,85.334,85.311,0.48201872]
[1771354469571,17.54,85.333,85.311,0.48201872]
[1771354470878,11.7189331,85.332,85.311,0.48201872]
[1771354475279,0.50193545,85.358,85.311,0.48201872]
[1771354475579,17.66,85.357,85.33,2.8599238]
[1771354475966,41.50666856,85.356,85.33,0.48201872]
[1771354476166,0.50193545,85.355,85.33,0.48201872]
[1771354476372,0.50193545,85.353,85.33,0.48201872]
[1771354476682,17.66,85.354,85.32,2.37790508]
[1771354476683,0.50193545,85.349,85.32,2.37790508]
[1771354477261,0.50193545,85.349,85.313,11.72146754]
[1771354477487,0.50193545,85.349,85.314,0.48201872]
[1771354478482,11.71673618,85.348,85.32,2.8599238]
[1771354478684,12.21867163,85.348,85.321,0.48201872]
[1771354479893,17.7,85.378,85.341,0.48201872]
[1771354480203,17.7,85.378,85.322,11.7203066]
[1771354480204,0.50193545,85.379,85.328,0.48201872]
[1771354480384,11.71097097,85.391,85.361,0.48201872]
[1771354480684,0.50193545,85.404,85.38,2.37790508]
[1771354480882,11.70919054,85.403,85.38,2.37790508]
[1771354481089,11.70919054,85.403,85.381,0.48201872]
[1771354481782,11.70836797,85.409,85.381,0.48201872]
[1771354483263,12.21030342,85.409,85.381,0.48201872]
[1771354483468,0.50193545,85.408,85.381,0.48201872]
[1771354484465,11.70864214,85.407,85.381,0.48201872]
[1771354485091,12.2178428,85.407,85.381,0.48201872]
[1771354485487,0.50920066,85.406,85.381,0.48201872]
[1771354486489,12.21811699,85.405,85.381,0.48201872]
[1771354487398,0.50920066,85.399,85.361,0.47623775]
[1771354487687,0.50920066,85.389,85.361,0.47623775]
[1771354488071,0.50920066,85.379,85.351,15.16]
[1771354488267,0.50920066,85.379,85.34,7.0651316]
[1771354488268,0.50920066,85.369,85.34,7.0651316]
[1771354488481,11.71399119,85.368,85.333,0.47623775]
[1771354488678,0.50920066,85.367,85.333,0.47623775]
[1771354490196,0.50920066,85.359,85.33,7.0651316]
[1771354490370,0.50920066,85.359,85.322,0.47623775]
[1771354490691,0.50920066,85.357,85.322,0.47623775]
[1771354491486,7.0651316,85.35,85.322,0.47623775]
[1771354491685,0.50920066,85.349,85.322,0.47623775]
[1771354493796,0.48322856,85.347,85.315,15.14]
[1771354493999,0.48322856,85.339,85.315,15.14]
[1771354494975,0.48322856,85.337,85.315,15.14]
[1771354495398,0.48322856,85.337,85.306,0.51755905]
[1771354495979,0.48322856,85.329,85.3,7.0651316]
[1771354496193,0.48322856,85.329,85.295,0.51755905]
[1771354496406,0.48322856,85.329,85.301,0.51755905]
[1771354497178,0.48322856,85.327,85.301,0.51755905]
[1771354497576,11.71948246,85.328,85.302,0.51755905]
[1771354498382,12.20271102,85.328,85.302,0.51755905]
[1771354499199,11.71899284,85.332,85.302,0.51755905]
[1771354499397,11.71899284,85.332,85.311,0.51755905]
[1771354499703,11.71829662,85.337,85.311,0.51755905]
[1771354499904,11.71687346,85.347,85.321,0.51755905]
[1771354500218,11.71522627,85.359,85.321,0.51755905]
[1771354500390,0.48322856,85.371,85.341,0.51755905]
[1771354500704,11.71288528,85.377,85.341,0.51755905]
[1771354501084,11.71288528,85.377,85.351,0.51755905]
[1771354501278,11.71288528,85.377,85.352,0.51755905]
[1771354501891,0.48322856,85.369,85.34,7.0651316]
[1771354502083,0.48322856,85.359,85.338,15.16]
[1771354502710,0.48322856,85.369,85.34,7.0651316]
[1771354502999,0.48322856,85.369,85.338,15.16]
[1771354503379,7.0651316,85.36,85.338,15.16]
[1771354503584,7.0651316,85.36,85.293,46.89684645]
[1771354503585,0.48322856,85.349,85.315,0.51755905]
[1771354503804,0.48322856,85.339,85.306,0.51755905]
[1771354504013,0.48322856,85.329,85.294,0.51755905]
[1771354504984,0.48322856,85.337,85.301,0.51755905]
[1771354505590,7.0651316,85.33,85.301,0.51755905]
[1771354505784,0.48322856,85.335,85.302,0.51755905]
[1771354506724,7.0651316,85.35,85.321,0.51755905]
[1771354507187,0.48322856,85.352,85.321,0.51755905]
[1771354507394,7.0651316,85.35,85.321,0.51755905]
[1771354507594,11.7165989,85.349,85.321,0.51755905]
[1771354507813,12.19982746,85.349,85.321,0.51755905]
[1771354507995,41.49132472,85.349,85.321,0.51755905]
[1771354508318,12.19982746,85.349,85.321,0.51755905]
[1771354508517,0.48322856,85.348,85.321,0.51755905]
[1771354509297,0.48322856,85.348,85.313,0.51755905]
[1771354510003,11.7165989,85.349,85.315,0.51755905]
[1771354510798,11.71589373,85.355,85.321,0.51755905]
[1771354511004,29.28457426,85.37,85.314,41.0249197]
[1771354511005,11.71467731,85.363,85.331,0.51755905]
[1771354512301,0.48322856,85.368,85.331,0.51755905]
[1771354512518,0.48322856,85.368,85.332,0.51755905]
[1771354513210,0.48322856,85.368,85.333,0.51755905]
[1771354513516,0.48322856,85.368,85.341,0.51755905]
[1771354514310,0.48322856,85.366,85.341,0.51755905]
[1771354515013,0.48322856,85.366,85.332,0.52507995]
[1771354516418,11.71440285,85.365,85.34,7.59021155]
[1771354516611,11.71440285,85.365,85.34,0.52507995]
[1771354516797,12.23181412,85.365,85.34,0.52507995]
[1771354518509,12.23181412,85.365,85.341,0.52507995]
[1771354519409,0.51741127,85.365,85.341,0.52507995]
[1771354519613,11.71111033,85.389,85.351,0.52507995]
[1771354519811,11.71111033,85.389,85.34,11.71779322]
[1771354519812,0.51741127,85.388,85.36,7.0651316]
[1771354520113,0.51741127,85.369,85.344,15.18]
[1771354520816,0.51741127,85.369,85.345,11.71714804]
[1771354521418,0.51741127,85.369,85.345,12.24222799]
[1771354521709,0.51741127,85.369,85.346,0.52507995]
[1771354522620,11.71399119,85.368,85.346,0.52507995]
[1771354522806,0.51741127,85.369,85.346,0.52507995]
[1771354525904,11.71353689,85.372,85.346,0.52507995]
[1771354526107,11.71248199,85.379,85.348,0.52507995]
[1771354526818,11.71248199,85.379,85.347,11.71687346]
[1771354526819,11.71248199,85.379,85.351,0.52507995]
[1771354528425,11.71248199,85.379,85.347,11.71687346]
[1771354528612,0.51741127,85.378,85.35,2.37551941]
[1771354528808,0.51741127,85.378,85.347,11.71687346]
[1771354529008,0.51741127,85.378,85.35,2.37551941]
[1771354530339,11.71275636,85.377,85.35,2.37551941]
[1771354530508,0.51741127,85.376,85.347,12.24195341]
[1771354530711,0.51741127,85.376,85.343,11.71732048]
[1771354530910,0.51741127,85.376,85.343,12.24240043]
[1771354531216,0.51741127,85.376,85.344,0.52507995]
[1771354531816,0.51741127,85.369,85.339,13.52137012]
[1771354532221,0.51741127,85.369,85.331,0.52507995]
[1771354533533,0.51741127,85.369,85.296,4.61729252]
[1771354533534,11.71303074,85.375,85.351,0.52507995]
[1771354534139,11.71303074,85.375,85.35,2.37551941]
[1771354534140,0.51741127,85.377,85.353,0.52507995]
[1771354534442,0.51741127,85.376,85.353,0.52507995]
[1771354534611,0.51741127,85.376,85.344,0.52507995]
[1771354535545,0.51741127,85.374,85.345,11.71714804]
[1771354535719,0.51741127,85.374,85.346,0.52507995]
[1771354536035,0.51741127,85.378,85.351,0.52507995]
[1771354537745,11.71275636,85.377,85.351,0.52507995]
[1771354539554,11.71275636,85.377,85.352,0.52507995]
[1771354540241,12.22523092,85.413,85.371,0.52507995]
[1771354540441,46.80641935,85.459,85.351,11.71623013]
[1771354540442,0.51741127,85.439,85.391,0.52507995]
[1771354540737,0.51741127,85.437,85.403,0.52507995]
[1771354540929,0.51741127,85.429,85.394,0.52507995]
[1771354541439,0.51741127,85.427,85.395,11.71028748]
[1771354541619,0.51741127,85.427,85.391,0.52507995]
[1771354542221,0.51741127,85.434,85.411,0.52507995]
[1771354544423,11.70404678,85.441,85.413,0.52507995]
[1771354544733,12.24985344,85.441,85.413,0.52507995]
[1771354544938,0.54580666,85.44,85.413,0.52507995]
[1771354545523,11.70425683,85.439,85.413,0.52507995]
[1771354546233,0.54580666,85.438,85.413,0.52507995]
[1771354546639,0.54580666,85.438,85.398,15.22]
[1771354546640,0.54580666,85.438,85.4,2.87993024]
[1771354546851,0.54580666,85.438,85.401,11.70946476]
[1771354547129,0.54580666,85.438,85.402,0.50441083]
[1771354547939,0.54580666,85.436,85.402,0.50441083]
[1771354548335,2.37551941,85.44,85.411,0.50441083]
[1771354548534,11.70425683,85.439,85.411,0.50441083]
[1771354548743,0.54580666,85.438,85.411,0.50441083]
[1771354549548,11.70453082,85.437,85.411,0.50441083]
[1771354549846,0.54580666,85.438,85.412,0.50441083]
[1771354550145,12.25029509,85.438,85.412,0.50441083]
[1771354550750,0.54580666,85.437,85.412,0.50441083]
[1771354554734,11.70466782,85.436,85.412,0.50441083]
[1771354554938,0.5256036,85.435,85.412,0.50441083]
[1771354555549,0.5256036,85.429,85.4,2.37551941]
[1771354555737,0.5256036,85.429,85.4,2.90964607]
[1771354556049,0.5256036,85.419,85.387,11.71128792]
[1771354556247,0.5256036,85.419,85.387,0.53412666]
[1771354556925,0.5256036,85.417,85.387,12.24540842]
[1771354558259,2.37551941,85.42,85.391,0.53412666]
[1771354558459,11.70699727,85.419,85.391,0.53412666]
[1771354558853,0.5256036,85.418,85.391,0.53412666]
[1771354559152,11.70727138,85.417,85.391,0.53412666]
[1771354559454,0.5256036,85.416,85.391,0.53412666]
[1771354560570,0.5256036,85.436,85.401,0.53412666]
[1771354560865,11.70480482,85.435,85.401,0.53412666]
[1771354561164,0.5256036,85.434,85.401,0.53412666]
[1771354562367,0.5256036,85.448,85.401,0.53412666]
[1771354562543,0.5256036,85.448,85.421,0.53412666]
[1771354562740,0.5256036,85.448,85.42,2.37551941]
[1771354562939,0.5256036,85.448,85.421,0.53412666]
[1771354564054,2.47551941,85.45,85.402,15.26]
[1771354564055,2.37551941,85.44,85.412,0.53412666]
[1771354564254,0.5256036,85.439,85.41,2.37551941]
[1771354564463,0.5256036,85.439,85.411,11.7080938]
[1771354564754,0.5256036,85.439,85.412,0.53412666]
[1771354564956,0.5256036,85.446,85.421,0.53412666]
[1771354566765,12.22903855,85.445,85.421,0.53412666]
[1771354566961,0.5256036,85.444,85.421,0.53412666]
[1771354568372,2.37551941,85.44,85.403,0.53412666]
[1771354568557,2.37551941,85.44,84.481,171.8434025]
[1771354568558,0.5256036,85.419,85.385,0.53412666]
[1771354568752,0.5256036,85.419,85.385,12.2457047]
[1771354569063,17.62,85.439,85.377,15.26]
[1771354569064,0.5256036,85.399,85.377,15.26]
[1771354569263,0.5256036,85.407,85.378,0.53412666]
[1771354569584,0.5256036,85.407,85.381,0.53412666]
[1771354569771,0.5256036,85.419,85.381,0.53412666]
[1771354569967,0.5256036,85.419,85.391,0.53412666]
[1771354570271,0.5256036,85.439,85.411,0.53412666]
[1771354570467,0.5256036,85.437,85.412,0.53412666]
[1771354572572,0.5256036,85.437,85.412,12.24208338]
[1771354572779,11.70466782,85.436,85.412,12.24208338]
[1771354572966,11.70466782,85.436,85.413,0.53412666]
[1771354573155,0.5256036,85.444,85.413,0.53412666]
[1771354573475,0.5256036,85.448,85.421,0.53412666]
[1771354574472,0.56019704,85.439,85.407,11.7086115]
[1771354574664,0.56019704,85.439,85.4,0.54885439]
[1771354574665,0.56019704,85.437,85.406,0.54885439]
[1771354575859,0.56019704,85.429,85.387,0.54885439]
[1771354576074,0.56019704,85.419,85.387,0.54885439]
[1771354576268,2.47551941,85.45,85.411,0.54885439]
[1771354576474,0.56019704,85.448,85.411,0.54885439]
[1771354576665,11.70316102,85.447,85.411,0.54885439]
[1771354576861,0.56019704,85.446,85.412,11.70795672]
[1771354577165,0.56019704,85.429,85.391,0.54885439]
[1771354579180,0.56019704,85.429,85.39,2.37551941]
[1771354579181,0.56019704,85.419,85.393,0.54885439]
[1771354580472,0.56019704,85.419,85.387,15.26]
[1771354580870,0.56019704,85.419,85.383,12.2607577]
[1771354581182,0.56019704,85.417,85.386,0.54885439]
[1771354582664,0.56019704,85.422,85.391,0.54885439]
[1771354583269,11.70672317,85.421,85.393,0.54885439]
[1771354583476,0.56019704,85.419,85.384,0.54885439]
[1771354583679,0.56019704,85.419,85.386,0.54885439]
[1771354583880,11.70672317,85.421,85.391,0.54885439]
[1771354584972,0.56019704,85.438,85.401,0.54885439]
[1771354585167,0.56019704,85.438,85.411,0.54885439]
[1771354585372,11.70453082,85.437,85.411,0.54885439]
[1771354585573,12.26472786,85.437,85.411,0.54885439]
[1771354585873,11.70407656,85.441,85.411,0.54885439]
[1771354586379,0.56019704,85.439,85.411,0.54885439]
[1771354586685,0.56019704,85.439,85.413,0.54885439]
[1771354586881,11.70439382,85.438,85.413,0.54885439]
[1771354587187,11.70391294,85.442,85.413,0.54885439]
[1771354588363,11.7028871,85.449,85.421,0.54885439]
[1771354588563,11.7028871,85.449,85.406,29.27175275]
[1771354588564,0.56019704,85.448,85.411,0.54885439]
[1771354588768,0.56019704,85.439,85.412,0.54885439]
[1771354589970,0.56019704,85.437,85.412,0.54885439]
[1771354590191,0.56019704,85.437,85.403,12.25800132]
[1771354590700,0.56019704,85.437,85.404,0.54885439]
[1771354592483,0.56019704,85.429,85.402,15.28]
[1771354592795,0.56019704,85.429,85.403,12.25804493]
[1771354593785,0.56019704,85.429,85.404,0.54885439]
[1771354594882,11.70576391,85.428,85.404,0.54885439]
[1771354596287,11.70478387,85.436,85.406,0.54885439]
[1771354596495,0.56019704,85.437,85.411,0.54885439]
[1771354597595,11.70466782,85.436,85.411,0.54885439]
[1771354597895,0.56019704,85.435,85.411,0.54885439]
[1771354599178,0.56019704,85.435,85.412,11.70795672]
[1771354599379,0.1,85.45,85.421,0.54885439]
[1771354599609,0.1,85.45,85.423,0.54885439]
[1771354601179,0.1,85.45,85.431,0.54885439]
[1771354601379,2.37219381,85.44,85.418,0.54885439]
[1771354601579,0.56019704,85.439,85.418,0.54885439]
[1771354601878,0.56019704,85.447,85.419,0.54885439]
[1771354602079,0.56019704,85.447,85.421,0.54885439]
[1771354602576,0.1,85.45,85.421,0.54885439]
[1771354603498,11.7028871,85.449,85.421,0.54885439]
[1771354603882,0.56019704,85.448,85.421,0.54885439]
[1771354604204,0.56019704,85.448,85.416,11.70740844]
[1771354604405,0.56019704,85.448,85.417,0.54439639]
[1771354605004,0.1,85.45,85.43,2.37219381]
[1771354605217,11.80279159,85.45,85.428,0.54439639]
[1771354605513,0.55113793,85.449,85.428,0.54439639]
[1771354606599,0.1,85.45,85.431,0.54439639]
[1771354606795,0.1,85.45,85.443,0.89449307]
[1771354607403,0.1,85.46,85.444,0.54439639]
[1771354607600,11.70151768,85.459,85.444,0.54439639]
[1771354607780,11.70151768,85.459,85.424,29.2657283]
[1771354607781,0.55113793,85.458,85.427,0.54439639]
[1771354608104,0.55113793,85.458,85.428,0.54439639]
[1771354608292,0.55113793,85.456,85.428,0.04439639]
[1771354609303,11.70206541,85.455,85.428,0.04439639]
[1771354609505,0.55113793,85.454,85.428,0.04439639]
[1771354609800,2.92333174,85.45,85.428,0.04439639]
[1771354610601,0.55113793,85.45,85.428,0.04439639]
[1771354611309,11.7028871,85.449,85.428,0.04439639]
[1771354611507,11.70224805,85.454,85.428,0.04439639]
[1771354612716,2.37219381,85.45,85.428,0.04439639]
[1771354613013,11.70224805,85.454,85.423,15.34]
[1771354613014,2.91721388,85.44,85.423,15.34]
[1771354613303,0.54502007,85.44,85.417,0.58385817]
[1771354613508,11.70366465,85.444,85.417,0.58385817]
[1771354613814,11.70292659,85.449,85.421,0.58385817]
[1771354614104,11.70233929,85.453,85.421,0.58385817]
[1771354614504,11.70151768,85.459,85.431,0.58385817]
[1771354615306,0.1,85.46,85.433,0.58385817]
[1771354615526,0.54502007,85.459,85.433,0.58385817]
[1771354615686,0.54502007,85.459,85.426,0.58385817]
[1771354616115,0.54502007,85.459,85.428,0.58385817]
[1771354617205,0.1,85.46,85.431,0.58385817]
[1771354617613,11.70151768,85.459,85.431,0.58385817]
[1771354619614,0.1,85.46,85.433,0.58385817]
[1771354619793,11.80147777,85.46,85.433,0.58385817]
[1771354620317,0.54502007,85.459,85.433,0.58385817]
[1771354620820,0.54502007,85.459,85.425,0.58385817]
[1771354621222,2.37219381,85.45,85.425,0.58385817]
[1771354621518,0.54502007,85.439,85.385,0.58385817]
[1771354621710,0.54502007,85.419,85.381,0.58385817]
[1771354622016,2.37219381,85.41,85.382,0.58385817]
[1771354623515,11.70836797,85.409,85.382,0.58385817]
[1771354624113,0.54502007,85.444,85.401,0.58385817]
[1771354624310,2.91721388,85.43,85.401,0.58385817]
[1771354624499,0.54502007,85.429,85.401,0.58385817]
[1771354625014,0.54502007,85.429,85.401,0.08385817]
[1771354625213,0.54502007,85.409,85.358,29.28811667]
[1771354625418,0.54502007,85.417,85.38,2.37219381]
[1771354625901,11.70636272,85.424,85.39,2.37219381]
[1771354626306,12.25138279,85.424,85.39,2.37219381]
[1771354626615,2.37219381,85.43,85.4,2.37219381]
[1771354626616,0.54502007,85.429,85.4,2.37219381]
[1771354626922,0.54502007,85.429,85.391,15.34]
[1771354627118,0.54502007,85.429,85.392,0.58385817]
[1771354627722,0.54502007,85.419,85.392,0.58385817]
[1771354627928,12.25215439,85.418,85.392,0.58385817]
[1771354628227,0.54502007,85.417,85.392,0.58385817]
[1771354629027,0.54502007,85.428,85.393,0.58385817]
[1771354629230,0.54502007,85.419,85.393,0.58385817]
[1771354629537,0.54502007,85.419,85.394,0.58385817]
[1771354629922,11.70713432,85.418,85.394,0.58385817]
[1771354631047,0.54502007,85.417,85.391,15.34]
[1771354631746,0.54502007,85.417,85.392,0.58385817]
[1771354632028,0.54502007,85.415,85.392,0.58385817]
[1771354632633,0.54502007,85.409,85.391,15.34]
[1771354632932,0.54502007,85.407,85.382,0.58385817]
[1771354633811,0.54502007,85.407,85.38,2.37219381]
[1771354634020,0.54502007,85.419,85.381,0.58385817]
[1771354635337,0.54502007,85.419,85.383,0.55447321]
[1771354635712,11.70713432,85.418,85.385,0.55447321]
[1771354637735,12.26685489,85.418,85.387,0.55447321]
[1771354637940,0.55972057,85.456,85.411,0.55447321]
[1771354638114,0.55972057,85.456,85.41,4.74438762]
[1771354638115,0.55972057,85.456,85.43,2.37219381]
[1771354638317,0.55972057,85.449,85.413,0.55447321]
[1771354638835,0.55972057,85.449,85.413,0.05447321]
[1771354639024,0.55972057,85.449,85.412,15.4]
[1771354639534,0.55972057,85.439,85.411,15.38]
[1771354639832,0.55972057,85.439,85.412,11.70795672]
[1771354640043,0.55972057,85.438,85.411,15.38]
[1771354641124,2.37219381,85.42,85.391,0.55447321]
[1771354641435,11.70429685,85.439,85.392,0.55447321]
[1771354641626,2.93191438,85.45,85.411,0.55447321]
[1771354642013,2.93191438,85.45,85.421,0.55447321]
[1771354642014,2.37219381,85.45,85.421,0.55447321]
[1771354642921,2.47219381,85.47,85.411,0.55447321]
[1771354642922,2.37219381,85.44,85.411,0.55447321]
[1771354643122,0.55972057,85.439,85.401,0.55447321]
[1771354643919,0.55972057,85.409,85.363,0.55447321]
[1771354644224,0.55972057,85.409,85.35,2.37219381]
[1771354644225,12.26822562,85.408,85.371,0.55447321]
[1771354644828,2.37219381,85.4,85.371,0.55447321]
[1771354645040,0.55972057,85.408,85.371,0.55447321]
[1771354645241,11.70836797,85.409,85.371,0.55447321]
[1771354646027,0.55972057,85.419,85.381,0.55447321]
[1771354646227,0.55972057,85.418,85.381,0.55447321]
[1771354647132,2.37219381,85.41,85.381,0.55447321]
[1771354648655,11.70836797,85.409,85.382,0.55447321]
[1771354649626,0.55972057,85.458,85.382,0.55447321]
[1771354649826,11.70165461,85.458,85.421,0.55447321]
[1771354650037,11.70165461,85.458,85.381,87.84155179]
[1771354650038,0.55972057,85.458,85.431,0.55447321]
[1771354651152,0.55972057,85.458,85.431,12.2597144]
[1771354651449,12.26151211,85.457,85.431,0.55447321]
[1771354651951,0.55972057,85.456,85.43,11.70539445]
[1771354652333,0.55972057,85.449,85.421,0.55447321]
[1771354652552,12.26151211,85.457,85.421,0.55447321]
[1771354653640,12.26151211,85.457,85.423,0.55447321]
[1771354655248,0.1,85.46,85.441,0.55447321]
[1771354655441,11.80149188,85.46,85.441,0.55447321]
[1771354655646,0.55972057,85.457,85.431,0.55447321]
[1771354655843,0.55972057,85.457,85.426,11.70602849]
[1771354656142,0.55972057,85.457,85.427,0.55447321]
[1771354656454,0.1,85.46,85.431,0.55447321]
[1771354656756,11.80151765,85.46,85.431,0.55447321]
[1771354658035,2.47159983,85.46,85.431,0.55447321]
[1771354658651,3.0313204,85.46,85.431,0.55447321]
[1771354659149,11.70151768,85.459,85.431,0.55447321]
[1771354659358,0.55972057,85.458,85.431,0.55447321]
[1771354659960,0.55972057,85.458,85.42,14.07835441]
[1771354660139,0.55972057,85.458,85.421,0.55447321]
[1771354660559,0.55972057,85.449,85.413,11.70768439]
[1771354660765,0.55972057,85.449,85.42,2.37159983]
[1771354661059,0.55972057,85.449,85.421,11.70672317]
[1771354661237,0.55972057,85.449,85.422,0.55447321]
[1771354661638,12.26274463,85.448,85.422,0.55447321]
[1771354661839,0.55972057,85.447,85.422,0.55447321]
[1771354662040,0.55972057,85.447,85.421,11.70672317]
[1771354662238,0.55972057,85.447,85.2,6.43043167]
[1771354662239,2.37159983,85.43,85.391,0.61004549]
[1771354662459,11.70302406,85.448,85.411,0.61004549]
[1771354662659,11.70302406,85.448,85.392,15.4]
[1771354662660,11.70302406,85.448,85.42,2.37159983]
[1771354662957,11.70302406,85.448,85.419,0.61004549]
[1771354663154,2.37159983,85.45,85.42,11.70686022]
[1771354663452,11.7028871,85.449,85.42,11.70686022]
[1771354663653,11.70234769,85.453,85.421,0.61004549]
[1771354664561,11.70165174,85.459,85.421,0.61004549]
[1771354664866,0.1,85.46,85.431,0.61004549]
[1771354665041,11.80146823,85.46,85.431,0.61004549]
[1771354665243,0.1,85.46,85.432,11.70521584]
[1771354665443,0.1,85.46,85.433,0.61004549]
[1771354665639,0.1,85.46,85.432,11.70521584]
[1771354665640,0.1,85.46,85.441,0.61004549]
[1771354666248,2.47159983,85.46,85.432,11.70521584]
[1771354666452,2.47159983,85.46,85.434,15.4]
[1771354666647,2.47159983,85.46,85.434,16.01004549]
[1771354667042,41.0501262,85.47,85.434,15.4]
[1771354667372,2.37159983,85.56,85.47,47.53139595]
[1771354667568,2.37159983,85.54,85.491,0.61004549]
[1771354667771,2.37159983,85.52,85.492,15.78]
[1771354667951,2.37159983,85.52,85.489,15.8]
[1771354668257,2.37159983,85.51,85.479,15.8]
[1771354668462,2.37159983,85.51,85.475,0.61004549]
[1771354668463,2.37159983,85.5,85.475,0.61004549]
[1771354669160,2.37159983,85.51,85.475,0.61004549]
[1771354669358,2.37159983,85.52,85.482,41.55433784]
[1771354669559,2.37159983,85.51,85.482,41.55433784]
[1771354669861,2.37159983,85.5,85.482,11.69836924]
[1771354670062,2.37159983,85.51,85.482,11.69836924]
[1771354670361,2.37159983,85.51,85.482,12.30841473]
[1771354670763,2.37159983,85.51,85.482,11.69836924]
[1771354671979,2.37159983,85.49,85.466,0.61004549]
[1771354672350,2.37159983,85.5,85.466,0.61004549]
[1771354672845,2.37159983,85.5,85.471,0.61004549]
[1771354673175,2.37159983,85.5,85.461,0.61004549]
[1771354673678,4.61729252,85.529,85.472,0.61004549]
[1771354673679,2.37159983,85.51,85.472,0.61004549]
[1771354674054,2.37159983,85.5,85.472,0.61004549]
[1771354674462,2.37159983,85.51,85.472,0.61004549]
[1771354675660,2.37159983,85.51,85.474,0.61004549]
[1771354677189,2.37159983,85.52,85.481,0.61004549]
[1771354678578,29.22057359,85.557,85.5,2.37159983]
[1771354678780,2.37159983,85.53,85.501,0.61004549]
[1771354679771,2.37159983,85.52,85.489,11.69728126]
[1771354679957,2.37159983,85.52,85.49,0.61004549]